lending/lending_fUSD_20250114
["ID","MTS","AMOUNT","RATE_DAILY","PERIOD"]
[348953243,1736890240798,-739.32,0.00010271,2]
[348953245,1736890240808,-800.24,0.00010271,2]
[348953247,1736890240817,-855.03,0.00010271,2]
[348953249,1736890240826,-500.0,0.00010271,2]
[348953251,1736890240836,-500.0,0.00010271,2]
[348953253,1736890240845,-500.0,0.00010271,2]
[348953255,1736890240855,-2253.21,0.00010271,2]
[348953257,1736890240863,-638.97,0.00010271,2]
[348953259,1736890240873,-555.97,0.00010271,2]
[348953261,1736890240882,-500.0,0.00010271,2]
[348953263,1736890240891,-762.68,0.00010271,2]
[348953265,1736890240900,-500.0,0.00010271,2]
[348953267,1736890240909,-781.78,0.00010271,2]
[348953269,1736890240919,-500.0,0.00010271,2]
[348953271,1736890240928,-1092.56,0.00010271,2]
[348953273,1736890240938,-500.0,0.00010271,2]
[348953275,1736890240950,-500.0,0.00010271,2]
[348953277,1736890240959,-500.0,0.00010271,2]
[348953279,1736890240969,-500.0,0.00010271,2]
[348953281,1736890240978,-500.0,0.00010271,2]
[348953283,1736890240988,-500.0,0.00010271,2]
[348953285,1736890240998,-500.0,0.00010271,2]
[348953287,1736890241007,-500.0,0.00010271,2]
[348953289,1736890241016,-500.0,0.00010271,2]
[348953291,1736890241027,-1371.44,0.00010271,2]
[348953293,1736890241037,-500.0,0.00010271,2]
[348953295,1736890241046,-500.0,0.00010271,2]
[348953297,1736890241055,-385.17479669,0.00010271,2]
[348953299,1736890241065,-500.0,0.00010271,2]
[348953301,1736890241074,-578.25,0.00010271,2]
[348953303,1736890241084,-500.0,0.00010271,2]
[348953305,1736890241093,-500.0,0.00010271,2]
[348953307,1736890241102,-3085.09,0.00010271,2]
[348953309,1736890241111,-500.0,0.00010271,2]
[348953311,1736890241121,-723.11,0.00010271,2]
[348953313,1736890241130,-500.0,0.00010271,2]
[348953315,1736890241139,-500.0,0.00010271,2]
[348953317,1736890241148,-500.0,0.00010271,2]
[348953319,1736890241158,-500.0,0.00010271,2]
[348953321,1736890241167,-500.0,0.00010271,2]
[348953323,1736890241177,-1395.98,0.00010271,2]
[348953325,1736890241186,-500.0,0.00010271,2]
[348953327,1736890241196,-522.63,0.00010271,2]
[348953329,1736890241205,-500.0,0.00010271,2]
[348953331,1736890241214,-500.0,0.00010271,2]
[348953333,1736890241224,-1000.0,0.00010271,2]
[348953335,1736890241233,-500.0,0.00010271,2]
[348953337,1736890241243,-2130.66,0.00010271,2]
[348953339,1736890241252,-500.0,0.00010271,2]
[348953341,1736890241261,-1186.83,0.00010271,2]
[348953343,1736890241270,-500.0,0.00010271,2]
[348953345,1736890241279,-500.0,0.00010271,2]
[348953347,1736890241288,-784.24,0.00010271,2]
[348953349,1736890241297,-552.75,0.00010271,2]
[348953351,1736890241306,-500.0,0.00010271,2]
[348953353,1736890241315,-1916.7,0.00010271,2]
[348953355,1736890241324,-2430.31,0.00010271,2]
[348953357,1736890241334,-500.0,0.00010271,2]
[348953359,1736890241342,-727.44,0.00010271,2]
[348953361,1736890241351,-500.0,0.00010271,2]
[348953363,1736890241361,-677.42,0.00010271,2]
[348953365,1736890241370,-269.3303955,0.00010271,2]
[348953367,1736890241379,-150.28683774,0.00010319,2]
[348953369,1736890241388,-2011.26511735,0.00010333,2]
[348953371,1736890241397,-172.99,0.00010401,2]
[348953373,1736890241406,-388.06,0.00010401,2]
[348953375,1736890241416,-150.0,0.00010401,2]
[348953376,1736890241425,-150.0,0.00010401,2]
[348953378,1736890241434,-437.26,0.00010401,2]
[348953380,1736890241445,-150.0,0.00010401,2]
[348953382,1736890241454,-437.26,0.00010401,2]
[348953384,1736890241464,-150.0,0.00010401,2]
[348953386,1736890241473,-150.0,0.00010401,2]
[348953388,1736890241482,-980.31,0.00010401,2]
[348953390,1736890241492,-150.0,0.00010401,2]
[348953392,1736890241502,-980.31,0.00010401,2]
[348953394,1736890241511,-150.0,0.00010401,2]
[348953396,1736890241521,-436.62,0.00010401,2]
[348953398,1736890241530,-150.0,0.00010401,2]
[348953400,1736890241540,-150.0,0.00010401,2]
[348953402,1736890241549,-150.0,0.00010401,2]
[348953404,1736890241559,-150.0,0.00010401,2]
[348953406,1736890241569,-150.0,0.00010401,2]
[348953408,1736890241579,-150.28683774,0.00010424,2]
[348953410,1736890241588,-34793.0,0.00010439,2]
[348953433,1736890241796,-408.89,0.00010447,2]
[348953435,1736890241806,-255.0,0.00010449,2]
[348953437,1736890241817,-177.959578,0.00010469,2]
[348953439,1736890241826,-164.680678,0.00010469,2]
[348953441,1736890241836,-150.28683774,0.0001053,2]
[348953443,1736890241846,-681.65,0.00010544,2]
[348953445,1736890241855,-1939.2,0.00010544,2]
[348953447,1736890241865,-736.38,0.00010544,2]
[348953449,1736890241874,-1496.38,0.00010544,2]
[348953451,1736890241883,-500.0,0.00010544,2]
[348953453,1736890241893,-615.03,0.00010544,2]
[348953455,1736890241902,-583.34,0.00010544,2]
[348953457,1736890241911,-797.29,0.00010544,2]
[348953459,1736890241921,-616.77,0.00010544,2]
[348953461,1736890241930,-500.0,0.00010544,2]
[348953463,1736890241942,-1304.7,0.00010544,2]
[348953465,1736890241956,-500.0,0.00010544,2]
[348953467,1736890241965,-1568.55,0.00010544,2]
[348953469,1736890241975,-2837.69,0.00010544,2]
[348953471,1736890241984,-1091.72,0.00010544,2]
[348953473,1736890241995,-1661.4,0.00010544,2]
[348953475,1736890242006,-841.92,0.00010544,2]
[348953477,1736890242015,-696.89,0.00010544,2]
[348953479,1736890242026,-1183.62,0.00010544,2]
[348953481,1736890242035,-746.54,0.00010544,2]
[348953483,1736890242045,-551.49,0.00010544,2]
[348953485,1736890242055,-1899.41,0.00010544,2]
[348953487,1736890242065,-1774.01,0.00010544,2]
[348953489,1736890242075,-613.17,0.00010544,2]
[348953491,1736890242084,-2804.2,0.00010544,2]
[348953493,1736890242093,-1293.3,0.00010544,2]
[348953495,1736890242103,-1022.59,0.00010544,2]
[348953497,1736890242113,-539.3,0.00010544,2]
[348953499,1736890242122,-753.75,0.00010544,2]
[348953501,1736890242131,-846.39,0.00010544,2]
[348953503,1736890242141,-1036.24,0.00010544,2]
[348953505,1736890242151,-500.0,0.00010544,2]
[348953507,1736890242160,-500.0,0.00010544,2]
[348953509,1736890242169,-1219.8,0.00010544,2]
[348953511,1736890242178,-801.27,0.00010544,2]
[348953513,1736890242188,-606.97,0.00010544,2]
[348953515,1736890242197,-1099.78,0.00010544,2]
[348953517,1736890242206,-500.0,0.00010544,2]
[348953519,1736890242216,-1001.08,0.00010545,2]
[348953521,1736890242226,-500.0,0.00010545,2]
[348953523,1736890242235,-500.0,0.00010545,2]
[348953525,1736890242245,-500.0,0.00010545,2]
[348953527,1736890242255,-500.0,0.00010545,2]
[348953529,1736890242264,-500.0,0.00010545,2]
[348953530,1736890242273,-545.53,0.00010545,2]
[348953532,1736890242283,-500.0,0.00010545,2]
[348953534,1736890242292,-500.0,0.00010545,2]
[348953536,1736890242302,-372.85376622,0.00010545,2]
[348953538,1736890242312,-500.0,0.00010545,2]
[348953540,1736890242321,-500.0,0.00010545,2]
[348953542,1736890242331,-601.65,0.00010545,2]
[348953545,1736890242340,-500.0,0.00010545,2]
[348953546,1736890242350,-500.0,0.00010545,2]
[348953548,1736890242360,-500.0,0.00010545,2]
[348953550,1736890242369,-573.92,0.00010545,2]
[348953552,1736890242381,-500.0,0.00010545,2]
[348953554,1736890242393,-500.0,0.00010545,2]
[348953556,1736890242402,-500.0,0.00010545,2]
[348953558,1736890242413,-500.0,0.00010545,2]
[348953560,1736890242423,-500.0,0.00010545,2]
[348953562,1736890242434,-500.0,0.00010545,2]
[348953564,1736890242446,-789.7,0.00010545,2]
[348953566,1736890242457,-500.0,0.00010545,2]
[348953568,1736890242467,-500.0,0.00010545,2]
[348953570,1736890242476,-500.0,0.00010545,2]
[348953572,1736890242486,-500.0,0.00010545,2]
[348953574,1736890242496,-500.0,0.00010545,2]
[348953576,1736890242506,-782.23,0.00010545,2]
[348953578,1736890242515,-500.0,0.00010545,2]
[348953580,1736890242525,-546.81,0.00010545,2]
[348953582,1736890242534,-1397.89,0.00010545,2]
[348953584,1736890242544,-500.0,0.00010545,2]
[348953585,1736890242553,-500.0,0.00010545,2]
[348953586,1736890242563,-540.45,0.00010545,2]
[348953587,1736890242572,-500.0,0.00010545,2]
[348953588,1736890242584,-500.0,0.00010545,2]
[348953589,1736890242593,-500.0,0.00010545,2]
[348953590,1736890242602,-605.19802321,0.00010545,2]
[348953591,1736890242612,-500.0,0.00010545,2]
[348953592,1736890242622,-500.0,0.00010545,2]
[348953593,1736890242631,-500.0,0.00010545,2]
[348953594,1736890242642,-500.0,0.00010545,2]
[348953595,1736890242652,-464.46,0.00010545,2]
[348953596,1736890242661,-500.0,0.00010545,2]
[348953597,1736890242671,-500.0,0.00010545,2]
[348953598,1736890242680,-650.59,0.00010545,2]
[348953599,1736890242689,-500.0,0.00010545,2]
[348953600,1736890242700,-500.0,0.00010545,2]
[348953601,1736890242710,-728.84,0.00010545,2]
[348953602,1736890242720,-500.0,0.00010545,2]
[348953603,1736890242730,-500.0,0.00010545,2]
[348953604,1736890242741,-647.0,0.00010545,2]
[348953605,1736890242750,-500.0,0.00010545,2]
[348953606,1736890242760,-500.0,0.00010545,2]
[348953607,1736890242771,-500.0,0.00010545,2]
[348953608,1736890242781,-500.0,0.00010545,2]
[348953609,1736890242791,-500.0,0.00010545,2]
[348953610,1736890242801,-500.0,0.00010545,2]
[348953611,1736890242811,-722.57,0.00010545,2]
[348953612,1736890242821,-1069.24,0.00010545,2]
[348953613,1736890242831,-704.16,0.00010545,2]
[348953614,1736890242841,-500.0,0.00010545,2]
[348953615,1736890242852,-500.0,0.00010545,2]
[348953616,1736890242862,-500.0,0.00010545,2]
[348953617,1736890242871,-500.0,0.00010545,2]
[348953619,1736890242882,-645.08,0.00010545,2]
[348953620,1736890242892,-955.39,0.00010545,2]
[348953621,1736890242902,-500.0,0.00010545,2]
[348953622,1736890242912,-500.0,0.00010545,2]
[348953623,1736890242922,-2797.35,0.00010545,2]
[348953624,1736890242932,-500.0,0.00010545,2]
[348953625,1736890242943,-500.0,0.00010545,2]
[348953626,1736890242957,-500.0,0.00010545,2]
[348953627,1736890242967,-500.0,0.00010545,2]
[348953628,1736890242977,-500.0,0.00010545,2]
[348953629,1736890242987,-501.82,0.00010545,2]
[348953630,1736890242997,-500.0,0.00010545,2]
[348953631,1736890243007,-500.0,0.00010545,2]
[348953632,1736890243016,-513.55,0.00010545,2]
[348953633,1736890243026,-2140.16,0.00010545,2]
[348953634,1736890243036,-500.0,0.00010545,2]
[348953635,1736890243046,-500.0,0.00010545,2]
[348953636,1736890243055,-500.0,0.00010545,2]
[348953637,1736890243066,-4416.6,0.00010545,2]
[348953638,1736890243076,-500.0,0.00010545,2]
[348953639,1736890243085,-1021.47,0.00010545,2]
[348953640,1736890243095,-500.0,0.00010545,2]
[348953641,1736890243106,-577.47,0.00010545,2]
[348953642,1736890243115,-1326.44,0.00010545,2]
[348953643,1736890243126,-500.0,0.00010545,2]
[348953644,1736890243136,-773.41,0.00010545,2]
[348953645,1736890243147,-500.0,0.00010545,2]
[348953646,1736890243157,-500.0,0.00010545,2]
[348953647,1736890243167,-500.0,0.00010545,2]
[348953648,1736890243177,-1466.79,0.00010545,2]
[348953649,1736890243187,-356.29,0.00010545,2]
[348953650,1736890243199,-500.0,0.00010545,2]
[348953651,1736890243209,-659.39,0.00010545,2]
[348953652,1736890243220,-860.38,0.00010545,2]
[348953653,1736890243230,-2026.08,0.00010545,2]
[348953654,1736890243240,-500.0,0.00010545,2]
[348953655,1736890243251,-500.0,0.00010545,2]
[348953656,1736890243260,-500.0,0.00010545,2]
[348953657,1736890243271,-500.0,0.00010545,2]
[348953658,1736890243281,-500.0,0.00010545,2]
[348953659,1736890243292,-500.0,0.00010545,2]
[348953660,1736890243302,-638.02,0.00010545,2]
[348953661,1736890243312,-500.0,0.00010545,2]
[348953662,1736890243323,-500.0,0.00010545,2]
[348953663,1736890243333,-609.31,0.00010545,2]
[348953664,1736890243342,-857.65,0.00010545,2]
[348953665,1736890243352,-672.51,0.00010545,2]
[348953666,1736890243362,-500.0,0.00010545,2]
[348953667,1736890243372,-500.0,0.00010545,2]
[348953668,1736890243382,-500.0,0.00010545,2]
[348953669,1736890243392,-500.0,0.00010545,2]
[348953670,1736890243401,-500.0,0.00010545,2]
[348953671,1736890243411,-1832.64,0.00010545,2]
[348953672,1736890243420,-500.0,0.00010545,2]
[348953673,1736890243430,-500.0,0.00010545,2]
[348953674,1736890243440,-656.8,0.00010545,2]
[348953675,1736890243450,-500.0,0.00010545,2]
[348953676,1736890243460,-604.39,0.00010545,2]
[348953678,1736890243470,-500.0,0.00010545,2]
[348953679,1736890243480,-500.0,0.00010545,2]
[348953680,1736890243490,-500.0,0.00010545,2]
[348953681,1736890243500,-366.40323672,0.00010545,2]
[348953683,1736890243509,-500.0,0.00010545,2]
[348953684,1736890243519,-500.0,0.00010545,2]
[348953685,1736890243528,-1287.62,0.00010545,2]
[348953686,1736890243538,-635.29,0.00010545,2]
[348953687,1736890243547,-1885.69,0.00010545,2]
[348953688,1736890243557,-574.15,0.00010545,2]
[348953689,1736890243566,-500.0,0.00010545,2]
[348953690,1736890243576,-500.0,0.00010545,2]
[348953691,1736890243585,-534.21,0.00010545,2]
[348953692,1736890243595,-739.32,0.00010545,2]
[348953693,1736890243605,-800.24,0.00010545,2]
[348953694,1736890243614,-855.03,0.00010545,2]
[348953695,1736890243624,-500.0,0.00010545,2]
[348953696,1736890243635,-500.0,0.00010545,2]
[348953697,1736890243645,-500.0,0.00010545,2]
[348953698,1736890243655,-2253.21,0.00010545,2]
[348953699,1736890243664,-638.97,0.00010545,2]
[348953700,1736890243674,-555.97,0.00010545,2]
[348953701,1736890243683,-500.0,0.00010545,2]
[348953702,1736890243693,-762.68,0.00010545,2]
[348953703,1736890243703,-500.0,0.00010545,2]
[348953704,1736890243714,-781.78,0.00010545,2]
[348953705,1736890243723,-500.0,0.00010545,2]
[348953706,1736890243734,-1092.56,0.00010545,2]
[348953707,1736890243743,-500.0,0.00010545,2]
[348953708,1736890243753,-500.0,0.00010545,2]
[348953709,1736890243763,-500.0,0.00010545,2]
[348953710,1736890243773,-500.0,0.00010545,2]
[348953711,1736890243783,-500.0,0.00010545,2]
[348953712,1736890243793,-500.0,0.00010545,2]
[348953713,1736890243802,-500.0,0.00010545,2]
[348953714,1736890243812,-500.0,0.00010545,2]
[348953715,1736890243822,-500.0,0.00010545,2]
[348953716,1736890243831,-1371.44,0.00010545,2]
[348953717,1736890243841,-500.0,0.00010545,2]
[348953718,1736890243851,-500.0,0.00010545,2]
[348953719,1736890243860,-500.0,0.00010545,2]
[348953720,1736890243870,-578.25,0.00010545,2]
[348953721,1736890243879,-500.0,0.00010545,2]
[348953722,1736890243889,-500.0,0.00010545,2]
[348953723,1736890243898,-3085.09,0.00010545,2]
[348953724,1736890243908,-500.0,0.00010545,2]
[348953725,1736890243919,-723.11,0.00010545,2]
[348953726,1736890243928,-500.0,0.00010545,2]
[348953727,1736890243939,-500.0,0.00010545,2]
[348953728,1736890243956,-500.0,0.00010545,2]
[348953729,1736890243965,-500.0,0.00010545,2]
[348953730,1736890243974,-1395.98,0.00010545,2]
[348953731,1736890243984,-522.63,0.00010545,2]
[348953732,1736890243994,-500.0,0.00010545,2]
[348953733,1736890244003,-500.0,0.00010545,2]
[348953734,1736890244013,-1000.0,0.00010545,2]
[348953735,1736890244022,-2130.66,0.00010545,2]
[348953736,1736890244032,-500.0,0.00010545,2]
[348953737,1736890244042,-1186.83,0.00010545,2]
[348953738,1736890244051,-500.0,0.00010545,2]
[348953739,1736890244061,-500.0,0.00010545,2]
[348953740,1736890244070,-552.75,0.00010545,2]
[348953741,1736890244080,-784.24,0.00010545,2]
[348953742,1736890244089,-500.0,0.00010545,2]
[348953743,1736890244100,-1916.7,0.00010545,2]
[348953744,1736890244110,-2430.31,0.00010545,2]
[348953745,1736890244120,-500.0,0.00010545,2]
[348953746,1736890244129,-727.44,0.00010545,2]
[348953747,1736890244139,-500.0,0.00010545,2]
[348953748,1736890244150,-677.42,0.00010545,2]
[348953749,1736890244159,-150.28683774,0.00010635,2]
[348953750,1736890244169,-150.28683774,0.0001074,2]
[348953751,1736890244179,-577.88,0.00010748,2]
[348953752,1736890244188,-500.0,0.00010768,2]
[348953753,1736890244202,-1000.0,0.00010786,2]
[348953754,1736890244268,-587.37,0.00010812,2]
[348953755,1736890244278,-500.0,0.00010812,2]
[348953756,1736890244287,-681.65,0.00010818,2]
[348953757,1736890244297,-1939.2,0.00010818,2]
[348953758,1736890244306,-736.38,0.00010818,2]
[348953759,1736890244316,-1496.38,0.00010818,2]
[348953760,1736890244325,-500.0,0.00010818,2]
[348953761,1736890244335,-615.03,0.00010818,2]
[348953762,1736890244344,-583.34,0.00010818,2]
[348953763,1736890244354,-797.29,0.00010818,2]
[348953764,1736890244364,-643.59,0.00010818,2]
[348953765,1736890244374,-616.77,0.00010818,2]
[348953766,1736890244383,-500.0,0.00010818,2]
[348953767,1736890244393,-1304.7,0.00010818,2]
[348953768,1736890244402,-500.0,0.00010818,2]
[348953769,1736890244412,-1568.55,0.00010818,2]
[348953770,1736890244422,-2837.69,0.00010818,2]
[348953771,1736890244431,-1091.72,0.00010818,2]
[348953772,1736890244440,-1661.4,0.00010818,2]
[348953773,1736890244452,-841.92,0.00010818,2]
[348953774,1736890244461,-696.89,0.00010818,2]
[348953775,1736890244471,-1183.62,0.00010818,2]
[348953776,1736890244480,-746.54,0.00010818,2]
[348953777,1736890244490,-551.49,0.00010818,2]
[348953778,1736890244500,-1899.41,0.00010818,2]
[348953779,1736890244509,-613.17,0.00010818,2]
[348953780,1736890244518,-1774.01,0.00010818,2]
[348953781,1736890244527,-2804.2,0.00010818,2]
[348953782,1736890244537,-1293.3,0.00010818,2]
[348953783,1736890244547,-1022.59,0.00010818,2]
[348953784,1736890244557,-539.3,0.00010818,2]
[348953785,1736890244566,-753.75,0.00010818,2]
[348953786,1736890244575,-846.39,0.00010818,2]
[348953787,1736890244585,-1036.24,0.00010818,2]
[348953788,1736890244594,-500.0,0.00010818,2]
[348953789,1736890244604,-500.0,0.00010818,2]
[348953790,1736890244613,-1219.8,0.00010818,2]
[348953791,1736890244623,-801.27,0.00010818,2]
[348953792,1736890244632,-606.97,0.00010818,2]
[348953793,1736890244641,-1099.78,0.00010818,2]
[348953794,1736890244650,-407.41,0.00010819,2]
[348953795,1736890244660,-500.0,0.00010819,2]
[348953796,1736890244669,-500.0,0.00010819,2]
[348953797,1736890244679,-500.0,0.00010819,2]
[348953798,1736890244688,-500.0,0.00010819,2]
[348953799,1736890244699,-545.53,0.00010819,2]
[348953800,1736890244710,-500.0,0.00010819,2]
[348953801,1736890244720,-500.0,0.00010819,2]
[348953802,1736890244731,-500.0,0.00010819,2]
[348953803,1736890244741,-500.0,0.00010819,2]
[348953804,1736890244752,-601.65,0.00010819,2]
[348953805,1736890244761,-500.0,0.00010819,2]
[348953806,1736890244771,-500.0,0.00010819,2]
[348953807,1736890244780,-500.0,0.00010819,2]
[348953808,1736890244790,-598.87,0.00010819,2]
[348953809,1736890244799,-573.92,0.00010819,2]
[348953810,1736890244809,-500.0,0.00010819,2]
[348953811,1736890244818,-500.0,0.00010819,2]
[348953812,1736890244827,-500.0,0.00010819,2]
[348953813,1736890244837,-500.0,0.00010819,2]
[348953814,1736890244846,-500.0,0.00010819,2]
[348953815,1736890244856,-789.7,0.00010819,2]
[348953816,1736890244865,-500.0,0.00010819,2]
[348953817,1736890244875,-500.0,0.00010819,2]
[348953818,1736890244884,-500.0,0.00010819,2]
[348953819,1736890244894,-500.0,0.00010819,2]
[348953820,1736890244905,-500.0,0.00010819,2]
[348953821,1736890244915,-782.23,0.00010819,2]
[348953822,1736890244924,-500.0,0.00010819,2]
[348953823,1736890244933,-546.81,0.00010819,2]
[348953824,1736890244944,-500.0,0.00010819,2]
[348953825,1736890244956,-1397.89,0.00010819,2]
[348953826,1736890244965,-500.0,0.00010819,2]
[348953827,1736890244975,-540.45,0.00010819,2]
[348953828,1736890244984,-500.0,0.00010819,2]
[348953829,1736890244994,-500.0,0.00010819,2]
[348953830,1736890245004,-500.0,0.00010819,2]
[348953831,1736890245013,-500.0,0.00010819,2]
[348953832,1736890245023,-500.0,0.00010819,2]
[348953833,1736890245032,-500.0,0.00010819,2]
[348953834,1736890245040,-500.0,0.00010819,2]
[348953835,1736890245050,-500.0,0.00010819,2]
[348953836,1736890245059,-500.0,0.00010819,2]
[348953837,1736890245068,-650.59,0.00010819,2]
[348953838,1736890245078,-500.0,0.00010819,2]
[348953839,1736890245087,-500.0,0.00010819,2]
[348953840,1736890245097,-728.84,0.00010819,2]
[348953841,1736890245106,-500.0,0.00010819,2]
[348953842,1736890245115,-500.0,0.00010819,2]
[348953843,1736890245125,-647.0,0.00010819,2]
[348953844,1736890245134,-500.0,0.00010819,2]
[348953845,1736890245143,-500.0,0.00010819,2]
[348953846,1736890245152,-500.0,0.00010819,2]
[348953847,1736890245162,-500.0,0.00010819,2]
[348953848,1736890245171,-500.0,0.00010819,2]
[348953849,1736890245181,-500.0,0.00010819,2]
[348953850,1736890245190,-722.57,0.00010819,2]
[348953851,1736890245201,-1069.24,0.00010819,2]
[348953852,1736890245209,-704.16,0.00010819,2]
[348953853,1736890245219,-500.0,0.00010819,2]
[348953854,1736890245228,-500.0,0.00010819,2]
[348953855,1736890245238,-500.0,0.00010819,2]
[348953856,1736890245247,-500.0,0.00010819,2]
[348953857,1736890245257,-645.08,0.00010819,2]
[348953858,1736890245266,-500.0,0.00010819,2]
[348953859,1736890245276,-955.39,0.00010819,2]
[348953860,1736890245285,-500.0,0.00010819,2]
[348953861,1736890245295,-2797.35,0.00010819,2]
[348953862,1736890245304,-500.0,0.00010819,2]
[348953863,1736890245314,-500.0,0.00010819,2]
[348953864,1736890245323,-500.0,0.00010819,2]
[348953865,1736890245333,-500.0,0.00010819,2]
[348953866,1736890245342,-500.0,0.00010819,2]
[348953867,1736890245351,-501.82,0.00010819,2]
[348953868,1736890245361,-500.0,0.00010819,2]
[348953869,1736890245371,-500.0,0.00010819,2]
[348953870,1736890245380,-513.55,0.00010819,2]
[348953871,1736890245394,-2140.16,0.00010819,2]
[348953872,1736890245404,-500.0,0.00010819,2]
[348953873,1736890245414,-520.26484272,0.00010819,2]
[348953874,1736890245423,-500.0,0.00010819,2]
[348953875,1736890245433,-4416.6,0.00010819,2]
[348953876,1736890245442,-500.0,0.00010819,2]
[348953877,1736890245453,-1021.47,0.00010819,2]
[348953878,1736890245462,-500.0,0.00010819,2]
[348953879,1736890245472,-577.47,0.00010819,2]
[348953880,1736890245481,-1326.44,0.00010819,2]
[348953881,1736890245491,-500.0,0.00010819,2]
[348953882,1736890245500,-773.41,0.00010819,2]
[348953883,1736890245509,-500.0,0.00010819,2]
[348953884,1736890245519,-500.0,0.00010819,2]
[348953885,1736890245528,-1466.79,0.00010819,2]
[348953886,1736890245537,-244.24312888,0.00010819,2]
[348953887,1736890245547,-659.39,0.00010819,2]
[348953888,1736890245557,-860.38,0.00010819,2]
[348953889,1736890245566,-2026.08,0.00010819,2]
[348953890,1736890245575,-500.0,0.00010819,2]
[348953891,1736890245585,-500.0,0.00010819,2]
[348953892,1736890245595,-500.0,0.00010819,2]
[348953893,1736890245604,-500.0,0.00010819,2]
[348953894,1736890245614,-500.0,0.00010819,2]
[348953895,1736890245623,-500.0,0.00010819,2]
[348953896,1736890245633,-638.02,0.00010819,2]
[348953897,1736890245642,-500.0,0.00010819,2]
[348953898,1736890245651,-500.0,0.00010819,2]
[348953899,1736890245661,-609.31,0.00010819,2]
[348953900,1736890245670,-857.65,0.00010819,2]
[348953901,1736890245679,-630.85,0.00010819,2]
[348953902,1736890245688,-672.51,0.00010819,2]
[348953903,1736890245700,-500.0,0.00010819,2]
[348953904,1736890245709,-500.0,0.00010819,2]
[348953905,1736890245719,-500.0,0.00010819,2]
[348953906,1736890245729,-500.0,0.00010819,2]
[348953907,1736890245739,-500.0,0.00010819,2]
[348953908,1736890245748,-500.0,0.00010819,2]
[348953909,1736890245757,-1832.64,0.00010819,2]
[348953910,1736890245767,-500.0,0.00010819,2]
[348953911,1736890245777,-656.8,0.00010819,2]
[348953912,1736890245786,-500.0,0.00010819,2]
[348953913,1736890245796,-500.0,0.00010819,2]
[348953914,1736890245805,-604.39,0.00010819,2]
[348953915,1736890245815,-500.0,0.00010819,2]
[348953916,1736890245824,-500.0,0.00010819,2]
[348953917,1736890245834,-500.0,0.00010819,2]
[348953918,1736890245843,-500.0,0.00010819,2]
[348953919,1736890245852,-1287.62,0.00010819,2]
[348953920,1736890245861,-635.29,0.00010819,2]
[348953921,1736890245871,-1885.69,0.00010819,2]
[348953922,1736890245880,-574.15,0.00010819,2]
[348953923,1736890245889,-500.0,0.00010819,2]
[348953924,1736890245899,-500.0,0.00010819,2]
[348953925,1736890245908,-534.21,0.00010819,2]